fUSD/lending_fUSD_20241219
["ID","MTS","AMOUNT","RATE_DAILY","PERIOD"]
[345971321,1734575466895,-2490.98459539,0.00025,2]
[345971322,1734575466907,-730.27883011,0.00025,2]
[345971323,1734575466918,-23648.67507851,0.00025,2]
[345971324,1734575466929,-554.682524,0.00025,2]
[345971325,1734575466941,-595.686,0.00025,2]
[345971326,1734575632096,2000.0,0.00024,120]
[345971327,1734575640023,2000.0,0.00024,120]
[345971328,1734575649600,2000.0,0.00024,120]
[345971329,1734575655886,2000.0,0.00024,120]
[345971331,1734575800880,450.0,0.00013,2]
[345971333,1734576011924,156.96,0.00010137,2]
[345971354,1734576633100,-378.98345466,0.00018905,2]
[345971355,1734576633126,-234.97654534,0.00018905,2]
[345971356,1734576633136,-156.96,0.00019198,2]
[345971357,1734576633146,-1000.0,0.00019911,2]
[345971358,1734576633156,-300.0,0.00019911,2]
[345971359,1734576633166,-32662.00345466,0.00019912,2]
[345971367,1734576638582,-8718.99654534,0.00019912,2]
[345971368,1734576638592,-361.98,0.00020799,2]
[345971369,1734576638601,-298.28,0.00020802,2]
[345971370,1734576638611,-563.36,0.00020806,2]
[345971371,1734576638621,-1000.0,0.00020815,2]
[345971372,1734576638630,-1500.0,0.00020815,2]
[345971373,1734576638639,-250.0,0.00020847,2]
[345971374,1734576638649,-2751.0,0.00020863,2]
[345971375,1734576638658,-250.0,0.0002089,2]
[345971376,1734576638667,-2576.82,0.00020901,2]
[345971377,1734576638676,-235.51,0.00020924,2]
[345971378,1734576638686,-1524.77,0.00020931,2]
[345971379,1734576638696,-23900.0,0.00020967,2]
[345971380,1734576638706,-500.0,0.00020984,2]
[345971381,1734576638715,-250.0,0.00020989,2]
[345971382,1734576638724,-429.74,0.00020993,2]
[345971383,1734576638734,-152.24,0.00021012,30]
[345971384,1734576638743,-165.45,0.00021035,2]
[345971385,1734576638752,-720.44,0.00021051,2]
[345971386,1734576638764,-200.0,0.0002106,2]
[345971387,1734576638774,-816.78,0.00021067,2]
[345971388,1734576638784,-250.0,0.00021074,2]
[345971389,1734576638796,-508.01121138,0.00021164,2]
[345971390,1734576638807,-500.0,0.00021164,2]
[345971391,1734576638816,-613.96,0.00021169,2]
[345971392,1734576638826,-298.28,0.00021572,2]
[345971393,1734576638835,-167.19,0.00021593,2]
[345971394,1734576638845,-300.0,0.00021683,2]
[345971395,1734576638855,-200.0,0.00021747,2]
[345971396,1734576638864,-429.74,0.0002177,2]
[345971397,1734576638873,-474.38,0.00021813,2]
[345971398,1734576638883,-474.38,0.00021819,2]
[345971399,1734576638892,-474.38,0.00021824,2]
[345971400,1734576638902,-474.38,0.0002183,2]
[345971401,1734576638910,-474.38,0.00021836,2]
[345971402,1734576638920,-474.38,0.00021842,2]
[345971403,1734576638929,-474.38,0.00021847,2]
[345971404,1734576638939,-474.38,0.00021853,2]
[345971405,1734576638948,-474.38,0.00021859,2]
[345971406,1734576638957,-474.38,0.00021865,2]
[345971407,1734576638967,-474.38,0.0002187,2]
[345971408,1734576638976,-474.38,0.00021876,2]
[345971409,1734576638986,-474.38,0.00021882,2]
[345971410,1734576638995,-474.38,0.00021888,2]
[345971411,1734576639006,-474.38,0.00021893,2]
[345971412,1734576639015,-474.38,0.00021899,2]
[345971413,1734576639025,-474.38,0.00021905,2]
[345971414,1734576639035,-474.38,0.00021911,2]
[345971415,1734576639047,-474.38,0.00021917,2]
[345971416,1734576639057,-474.38,0.00021922,2]
[345971417,1734576639067,-235.51,0.0002197,2]
[345971418,1734576639076,-178.0,0.00022,2]
[345971419,1734576639085,-502.01,0.00022109,2]
[345971420,1734576639095,-438.0678,0.00022137,10]
[345971421,1734576639105,-498.99,0.00022164,2]
[345971422,1734576639114,-491.16,0.00022164,2]
[345971423,1734576639124,-495.5,0.00022164,2]
[345971424,1734576639133,-490.56,0.00022164,2]
[345971425,1734576639143,-505.09,0.00022164,2]
[345971426,1734576639153,-498.31,0.00022164,2]
[345971427,1734576639163,-490.68,0.00022164,2]
[345971428,1734576639172,-507.58,0.00022164,2]
[345971429,1734576639182,-499.37,0.00022164,2]
[345971430,1734576639192,-491.65,0.00022164,2]
[345971431,1734576639201,-505.81,0.00022164,2]
[345971433,1734576639210,-490.59,0.00022164,2]
[345971434,1734576639220,-503.0,0.00022192,2]
[345971435,1734576639229,-158.12,0.00022286,2]
[345971436,1734576639239,-210.32963742,0.00022307,2]
[345971437,1734576639248,-204.0,0.0002232,2]
[345971438,1734576639258,-298.28,0.00022342,2]
[345971439,1734576639267,-915.45462686,0.00022455,2]
[345971440,1734576639277,-500.0,0.00022464,4]
[345971441,1734576639286,-203.83481616,0.00022464,4]
[345971442,1734576639298,-500.0,0.00022464,4]
[345971443,1734576639307,-500.0,0.00022464,4]
[345971444,1734576639317,-500.0,0.00022464,4]
[345971445,1734576639326,-500.0,0.00022464,4]
[345971446,1734576639336,-500.0,0.00022464,4]
[345971447,1734576639345,-500.0,0.00022464,4]
[345971448,1734576639355,-500.0,0.00022464,4]
[345971449,1734576639364,-500.0,0.00022464,4]
[345971450,1734576639374,-460.22059267,0.00022464,4]
[345971451,1734576639383,-500.0,0.00022464,4]
[345971452,1734576639392,-259.21798386,0.00022464,4]
[345971453,1734576639401,-503.6086261,0.00022464,4]
[345971454,1734576639411,-508.61220947,0.00022464,4]
[345971455,1734576639421,-500.0,0.00022464,4]
[345971456,1734576639431,-500.0,0.00022464,4]
[345971457,1734576639440,-500.0,0.00022464,4]
[345971458,1734576639450,-500.0,0.00022464,4]
[345971459,1734576639459,-500.0,0.00022464,4]
[345971460,1734576639468,-500.0,0.00022464,4]
[345971461,1734576639477,-500.0,0.00022464,4]
[345971462,1734576639487,-504.57614914,0.00022464,4]
[345971463,1734576639496,-500.0,0.00022464,4]
[345971464,1734576639505,-500.0,0.00022464,4]
[345971465,1734576639515,-506.3991725,0.00022464,4]
[345971466,1734576639524,-500.0,0.00022464,4]
[345971467,1734576639534,-500.0,0.00022464,4]
[345971468,1734576639544,-500.0,0.00022464,4]
[345971469,1734576639554,-360.73943635,0.00022464,4]
[345971470,1734576639563,-500.0,0.00022464,4]
[345971471,1734576639573,-624.15523881,0.00022464,4]
[345971472,1734576639582,-500.0,0.00022464,4]
[345971473,1734576639591,-515.43644788,0.00022464,4]
[345971474,1734576639600,-500.0,0.00022464,4]
[345971475,1734576639610,-500.0,0.00022464,4]
[345971476,1734576639619,-660.2,0.00022464,4]
[345971477,1734576639628,-500.0,0.00022464,4]
[345971478,1734576639637,-500.0,0.00022464,4]
[345971479,1734576639647,-468.97843188,0.00022464,4]
[345971480,1734576639656,-573.08,0.00022464,4]
[345971481,1734576639665,-454.97514176,0.00022464,4]
[345971482,1734576639675,-500.0,0.00022464,4]
[345971483,1734576639684,-500.0,0.00022464,4]
[345971484,1734576639693,-500.0,0.00022464,4]
[345971485,1734576639702,-520.47083768,0.00022464,4]
[345971486,1734576639712,-500.0,0.00022464,4]
[345971487,1734576639721,-500.0,0.00022464,4]
[345971488,1734576639731,-500.0,0.00022464,4]
[345971489,1734576639740,-177.2306888,0.00022464,4]
[345971490,1734576639749,-500.0,0.00022464,4]
[345971491,1734576639759,-500.0,0.00022464,4]
[345971492,1734576639769,-500.0,0.00022464,4]
[345971493,1734576639780,-500.0,0.00022464,4]
[345971494,1734576639791,-500.0,0.00022464,4]
[345971495,1734576639800,-500.0,0.00022464,4]
[345971496,1734576639811,-500.0,0.00022464,4]
[345971497,1734576639820,-500.0,0.00022464,4]
[345971498,1734576639830,-500.0,0.00022464,4]
[345971499,1734576639839,-500.0,0.00022464,4]
[345971500,1734576639849,-500.0,0.00022464,4]
[345971501,1734576639858,-500.0,0.00022464,4]
[345971502,1734576639869,-500.0,0.00022464,4]
[345971503,1734576639878,-500.0,0.00022464,4]
[345971504,1734576639888,-500.0,0.00022464,4]
[345971505,1734576639897,-522.78625112,0.00022464,4]
[345971506,1734576639906,-500.0,0.00022464,4]
[345971507,1734576639915,-500.0,0.00022464,4]
[345971508,1734576639925,-500.0,0.00022464,4]
[345971509,1734576639934,-500.0,0.00022464,4]
[345971510,1734576639944,-500.0,0.00022464,4]
[345971511,1734576639953,-452.34146973,0.00022464,4]
[345971512,1734576639963,-500.0,0.00022464,7]
[345971513,1734576639973,-621.95092908,0.00022464,2]
[345971514,1734576639982,-500.0,0.00022464,4]
[345971515,1734576639992,-500.0,0.00022464,4]
[345971516,1734576640002,-500.0,0.00022464,4]
[345971517,1734576640011,-500.0,0.00022464,4]
[345971518,1734576640021,-500.0,0.00022464,4]
[345971519,1734576640030,-512.89287155,0.00022464,4]
[345971520,1734576640041,-632.00101699,0.00022464,4]
[345971521,1734576640050,-500.0,0.00022464,4]
[345971522,1734576640060,-500.0,0.00022464,4]
[345971523,1734576640070,-522.92324021,0.00022464,4]
[345971524,1734576640080,-524.29736324,0.00022464,4]
[345971525,1734576640089,-500.0,0.00022464,4]
[345971526,1734576640099,-517.95313132,0.00022464,4]
[345971527,1734576640109,-511.92523114,0.00022464,4]
[345971528,1734576640119,-500.0,0.00022464,4]
[345971529,1734576640128,-500.0,0.00022464,4]
[345971530,1734576640138,-500.0,0.00022464,4]
[345971531,1734576640147,-500.0,0.00022464,4]
[345971532,1734576640157,-209.81166527,0.00022464,4]
[345971533,1734576640167,-525.49,0.00022464,4]
[345971534,1734576640177,-500.0,0.00022464,4]
[345971535,1734576640186,-514.77109114,0.00022464,4]
[345971536,1734576640197,-510.84862029,0.00022464,4]
[345971537,1734576640207,-500.0,0.00022464,4]
[345971538,1734576640217,-500.0,0.00022464,4]
[345971539,1734576640227,-500.0,0.00022464,4]
[345971540,1734576640236,-500.0,0.00022464,4]
[345971541,1734576640246,-500.0,0.00022464,4]
[345971542,1734576640255,-500.0,0.00022464,4]
[345971543,1734576640265,-500.0,0.00022464,4]
[345971544,1734576640275,-500.0,0.00022464,4]
[345971545,1734576640285,-551.68,0.00022464,4]
[345971546,1734576640296,-500.0,0.00022464,4]
[345971547,1734576640306,-500.0,0.00022464,4]
[345971548,1734576640316,-500.0,0.00022464,4]
[345971549,1734576640326,-500.0,0.00022464,4]
[345971550,1734576640336,-500.0,0.00022464,4]
[345971551,1734576640347,-500.0,0.00022464,4]
[345971552,1734576640357,-500.0,0.00022464,4]
[345971553,1734576640367,-500.0,0.00022464,2]
[345971554,1734576640377,-500.0,0.00022464,4]
[345971555,1734576640386,-500.0,0.00022464,4]
[345971556,1734576640395,-510.03960189,0.00022464,4]
[345971557,1734576640404,-500.0,0.00022464,4]
[345971558,1734576640414,-500.0,0.00022464,4]
[345971559,1734576640423,-500.0,0.00022464,4]
[345971560,1734576640433,-500.0,0.00022464,4]
[345971561,1734576640442,-500.0,0.00022464,4]
[345971562,1734576640452,-500.0,0.00022464,4]
[345971563,1734576640462,-500.0,0.00022464,4]
[345971564,1734576640472,-500.0,0.00022464,4]
[345971565,1734576640481,-500.0,0.00022464,4]
[345971566,1734576640491,-500.0,0.00022464,4]
[345971567,1734576640500,-500.0,0.00022464,4]
[345971568,1734576640510,-500.0,0.00022464,4]
[345971570,1734576640520,-515.21465521,0.00022464,4]
[345971571,1734576640530,-520.52,0.00022464,4]
[345971572,1734576640541,-500.0,0.00022464,4]
[345971573,1734576640551,-500.0,0.00022464,4]
[345971574,1734576640560,-567.23,0.00022464,4]
[345971575,1734576640569,-500.0,0.00022464,4]
[345971576,1734576640578,-517.50403445,0.00022464,4]
[345971577,1734576640587,-500.0,0.00022464,4]
[345971578,1734576640596,-500.0,0.00022464,4]
[345971579,1734576640606,-519.36359473,0.00022464,4]
[345971580,1734576640615,-500.0,0.00022464,4]
[345971581,1734576640625,-500.0,0.00022464,4]
[345971582,1734576640634,-500.0,0.00022464,4]
[345971583,1734576640643,-500.0,0.00022464,4]
[345971584,1734576640652,-504.07939076,0.00022464,4]
[345971585,1734576640661,-514.05197603,0.00022464,4]
[345971586,1734576640671,-500.0,0.00022464,4]
[345971587,1734576640681,-500.0,0.00022464,4]
[345971588,1734576640692,-500.0,0.00022464,4]
[345971589,1734576640702,-638.02,0.00022464,4]
[345971590,1734576640712,-500.0,0.00022464,4]
[345971591,1734576640721,-500.0,0.00022464,4]
[345971592,1734576640731,-500.0,0.00022464,4]
[345971593,1734576640740,-500.0,0.00022464,4]
[345971594,1734576640750,-500.0,0.00022464,4]
[345971595,1734576640760,-446.88,0.00022464,4]
[345971596,1734576640774,-500.0,0.00022464,4]
[345971597,1734576640782,-500.0,0.00022464,4]
[345971598,1734576640795,-501.56742634,0.00022473,2]
[345971599,1734576640806,-159.98371703,0.00022473,2]
[345971600,1734576640816,-150.0,0.00022488,4]
[345971601,1734576640826,-150.0,0.00022488,4]
[345971602,1734576640836,-150.0,0.00022488,4]
[345971603,1734576640845,-150.0,0.00022522,4]
[345971604,1734576640856,-185.05,0.00022527,2]
[345971605,1734576640866,-500.0,0.00022536,4]
[345971606,1734576640876,-500.0,0.00022536,4]
[345971607,1734576640886,-500.0,0.00022536,4]
[345971608,1734576640895,-500.0,0.00022536,4]
[345971609,1734576640905,-500.0,0.00022536,4]
[345971610,1734576640914,-500.0,0.00022536,4]
[345971611,1734576640925,-869.01,0.00022536,4]
[345971612,1734576640934,-500.0,0.00022536,4]
[345971613,1734576640943,-563.83612201,0.00022536,4]
[345971614,1734576640953,-500.0,0.00022536,4]
[345971615,1734576640963,-500.0,0.00022536,4]
[345971616,1734576640972,-1158.61,0.00022536,4]
[345971617,1734576640982,-647.06,0.00022536,4]
[345971618,1734576640991,-637.11,0.00022536,4]
[345971619,1734576641001,-500.0,0.00022536,4]
[345971620,1734576641011,-500.0,0.00022536,4]
[345971621,1734576641020,-556.45,0.00022536,4]
[345971622,1734576641030,-1467.81,0.00022536,4]
[345971623,1734576641043,-500.0,0.00022536,4]
[345971624,1734576641053,-500.0,0.00022536,4]
[345971625,1734576641062,-500.0,0.00022536,4]
[345971626,1734576641072,-500.0,0.00022536,4]
[345971627,1734576641082,-500.0,0.00022536,4]
[345971628,1734576641091,-510.8532497,0.00022536,4]
[345971629,1734576641100,-500.0,0.00022536,4]
[345971630,1734576641110,-500.0,0.00022536,4]
[345971631,1734576641119,-500.0,0.00022536,4]
[345971632,1734576641129,-500.0,0.00022536,4]
[345971633,1734576641139,-500.0,0.00022536,4]
[345971634,1734576641150,-566.16,0.00022536,4]
[345971635,1734576641159,-500.0,0.00022536,4]
[345971636,1734576641168,-500.0,0.00022536,4]
[345971637,1734576641178,-500.0,0.00022536,4]
[345971638,1734576641188,-502.08,0.00022536,4]
[345971640,1734576641199,-500.0,0.00022536,4]
[345971641,1734576641209,-787.42,0.00022536,4]
[345971643,1734576641220,-634.01,0.00022536,4]
[345971646,1734576641231,-500.0,0.00022536,4]
[345971647,1734576641241,-500.0,0.00022537,4]
[345971649,1734576641252,-343.84984865,0.00022537,4]
[345971651,1734576641262,-519.45726691,0.00022537,4]
[345971653,1734576641272,-503.63131585,0.00022537,4]
[345971655,1734576641283,-505.21458305,0.00022537,4]
[345971657,1734576641298,-501.13620927,0.00022537,4]
[345971659,1734576641308,-500.0,0.00022537,4]
[345971661,1734576641318,-504.85596219,0.00022537,4]
[345971663,1734576641328,-491.70274443,0.00022537,4]
[345971665,1734576641338,-517.10923218,0.00022537,4]
[345971666,1734576641349,-500.0,0.00022537,4]
[345971667,1734576641359,-507.13035688,0.00022537,4]
[345971668,1734576641369,-500.0,0.00022537,4]
[345971669,1734576641379,-523.09244377,0.00022537,4]
[345971670,1734576641389,-505.2683428,0.00022537,4]
[345971671,1734576641398,-484.67512735,0.00022537,4]
[345971672,1734576641408,-517.63889592,0.00022537,4]
[345971673,1734576641417,-502.40840866,0.00022537,4]
[345971674,1734576641427,-500.0,0.00022537,4]
[345971675,1734576641436,-500.0,0.00022537,4]
[345971676,1734576641446,-509.71939506,0.00022537,4]
[345971677,1734576641456,-509.73005636,0.00022537,4]
[345971678,1734576641663,-503.90187644,0.00022537,4]
[345971679,1734576641673,-505.51428895,0.00022537,4]
[345971680,1734576641682,-519.17588057,0.00022537,4]
[345971681,1734576641692,-513.76736145,0.00022537,4]
[345971682,1734576641701,-500.0,0.00022537,4]
[345971683,1734576641711,-509.59497519,0.00022537,4]
[345971684,1734576641720,-516.55670114,0.00022537,4]
[345971685,1734576641729,-500.0,0.00022537,4]
[345971686,1734576641739,-523.73611366,0.00022537,4]
[345971687,1734576641748,-1729.060691,0.00022537,4]
[345971688,1734576641758,-2428.791844,0.00022537,4]
[345971689,1734576641768,-181.359297,0.00022537,4]
[345971690,1734576641778,-500.0,0.00022537,4]
[345971691,1734576641795,-500.0,0.00022537,4]
[345971692,1734576641806,-998.74,0.00022537,4]
[345971693,1734576641816,-500.0,0.00022537,4]
[345971694,1734576641828,-509.62934252,0.00022537,4]
[345971695,1734576641838,-500.0,0.00022537,4]
[345971696,1734576641848,-500.0,0.00022537,4]
[345971697,1734576641857,-504.66905475,0.00022537,4]
[345971698,1734576641868,-504.424694,0.00022537,4]
[345971699,1734576641877,-583.23,0.00022537,4]
[345971700,1734576641886,-512.81061187,0.00022537,4]
[345971701,1734576641896,-500.0,0.00022537,4]
[345971702,1734576641905,-508.62124144,0.00022537,4]
[345971703,1734576641915,-500.0,0.00022537,4]
[345971704,1734576641925,-783.29,0.00022537,4]
[345971705,1734576641934,-500.0,0.00022537,4]
[345971706,1734576641944,-502.46259756,0.00022537,4]
[345971707,1734576641955,-502.91005849,0.00022537,4]
[345971708,1734576641966,-330.46203244,0.00022537,4]
[345971709,1734576641976,-568.67194293,0.00022537,4]
[345971710,1734576641986,-500.0,0.00022537,4]
[345971711,1734576641995,-500.0,0.00022537,4]
[345971712,1734576642004,-502.31246403,0.00022537,4]
[345971713,1734576642014,-504.30480159,0.00022537,4]
[345971714,1734576642023,-500.0,0.00022537,4]
[345971715,1734576642033,-500.0,0.00022537,4]
[345971716,1734576642045,-500.3116438,0.00022537,4]
[345971717,1734576642055,-580.22,0.00022537,4]
[345971718,1734576642065,-659.87,0.00022537,4]
[345971719,1734576642075,-500.0,0.00022537,4]
[345971720,1734576642085,-500.0,0.00022537,4]
[345971721,1734576642095,-500.0,0.00022537,4]
[345971722,1734576642105,-501.58228144,0.00022537,4]
[345971723,1734576642115,-500.0,0.00022537,4]
[345971724,1734576642124,-721.9,0.00022537,4]
[345971725,1734576642134,-1363.63,0.00022537,4]
[345971726,1734576642143,-500.0,0.00022537,4]
[345971727,1734576642153,-500.0,0.00022537,4]
[345971728,1734576642162,-500.0,0.00022537,4]
[345971729,1734576642172,-500.0,0.00022537,4]
[345971730,1734576642181,-515.90295527,0.00022537,4]
[345971731,1734576642190,-500.0,0.00022537,4]
[345971732,1734576642201,-500.0,0.00022537,4]
[345971733,1734576642211,-502.39910304,0.00022537,4]
[345971734,1734576642221,-2127.52,0.00022537,4]
[345971735,1734576642230,-500.0,0.00022537,4]
[345971736,1734576642244,-500.0,0.00022537,4]
[345971737,1734576642253,-542.73687988,0.00022537,4]
[345971738,1734576642263,-500.0,0.00022537,4]
[345971739,1734576642273,-500.0,0.00022537,4]
[345971740,1734576642283,-500.0,0.00022537,4]
[345971741,1734576642295,-500.0,0.00022537,4]
[345971742,1734576642306,-500.0,0.00022537,4]
[345971743,1734576642316,-500.0,0.00022537,4]
[345971744,1734576642326,-500.0,0.00022537,4]
[345971745,1734576642336,-500.0,0.00022537,4]
[345971746,1734576642346,-17092.4494,0.00022538,2]
[345971747,1734576642356,-429.74,0.00022546,2]
[345971748,1734576642366,-150.0,0.00022552,4]
[345971749,1734576642375,-150.0,0.00022556,4]
[345971750,1734576642385,-150.0,0.0002259,4]
[345971751,1734576642395,-150.0,0.00022601,4]
[345971752,1734576642405,-150.0,0.00022616,4]
[345971753,1734576642415,-150.0,0.00022625,4]
[345971754,1734576642425,-3139.64850183,0.00022636,2]
[345971755,1734576642435,-374.05552606,0.00022638,2]
[345971756,1734576642444,-13067.9269,0.00022638,2]
[345971757,1734576642454,-5117.5212,0.00022638,2]
[345971758,1734576642463,-3082.1841,0.00022638,2]
[345971759,1734576642473,-150.0,0.00022659,4]
[345971760,1734576642483,-150.0,0.0002268,4]
[345971761,1734576642493,-150.0,0.00022693,4]
[345971762,1734576642502,-204.0,0.000227,2]
[345971763,1734576642512,-150.0,0.00022715,4]
[345971764,1734576642522,-150.0,0.00022727,4]
[345971765,1734576642531,-1000.0,0.00022736,2]
[345971766,1734576642543,-741.02,0.00022736,4]
[345971767,1734576642552,-508.37697792,0.00022736,4]
[345971768,1734576642562,-500.0,0.00022736,4]
[345971769,1734576642572,-469.24362056,0.00022736,4]
[345971770,1734576642582,-500.0,0.00022736,4]
[345971771,1734576642590,-500.0,0.00022736,4]
[345971772,1734576642599,-500.0,0.00022736,4]
[345971773,1734576642609,-500.0,0.00022736,4]
[345971774,1734576642618,-500.0,0.00022736,4]
[345971775,1734576642628,-500.0,0.00022736,4]
[345971776,1734576642638,-500.0,0.00022736,4]
[345971777,1734576642647,-500.0,0.00022736,4]
[345971778,1734576642657,-500.0,0.00022736,4]
[345971779,1734576642666,-500.0,0.00022736,4]
[345971780,1734576642675,-500.0,0.00022736,4]
[345971781,1734576642685,-500.0,0.00022736,4]
[345971782,1734576642695,-520.98779479,0.00022736,4]
[345971783,1734576642704,-857.04,0.00022736,4]
[345971784,1734576642714,-500.0,0.00022736,4]
[345971785,1734576642724,-500.0,0.00022736,4]
[345971786,1734576642734,-500.0,0.00022736,4]
[345971787,1734576642744,-500.0,0.00022736,4]
[345971788,1734576642753,-500.0,0.00022736,4]
[345971789,1734576642764,-500.0,0.00022736,4]
[345971790,1734576642774,-500.0,0.00022736,4]
[345971791,1734576642787,-500.0,0.00022736,4]
[345971792,1734576642800,-500.0,0.00022736,4]
[345971793,1734576642811,-144.55919716,0.00022736,4]
[345971794,1734576642829,-355.44080284,0.00022736,4]
[345971795,1734576642839,-500.0,0.00022736,4]
[345971796,1734576642849,-500.0,0.00022736,4]
[345971797,1734576642858,-341.77669403,0.00022736,4]
[345971798,1734576642870,-158.22330597,0.00022736,4]
[345971799,1734576642879,-500.0,0.00022736,4]
[345971800,1734576642890,-500.0,0.00022736,4]
[345971801,1734576642900,-573.04,0.00022736,4]
[345971802,1734576642910,-500.0,0.00022736,4]
[345971803,1734576642919,-539.13,0.00022736,4]
[345971804,1734576642928,-505.83697114,0.00022736,4]
[345971805,1734576642938,-488.60183159,0.00022736,4]
[345971806,1734576642952,-11.39816841,0.00022736,4]
[345971807,1734576642961,-500.0,0.00022736,4]
[345971808,1734576642970,-236.85315617,0.00022736,4]
[345971809,1734576642982,-212.99478114,0.00022736,4]
[345971810,1734576642992,-500.0,0.00022736,4]
[345971811,1734576643002,-500.0,0.00022736,4]
[345971812,1734576643011,-500.0,0.00022736,4]
[345971813,1734576643021,-500.0,0.00022736,4]
[345971814,1734576643030,-500.0,0.00022736,4]
[345971815,1734576643043,-500.0,0.00022736,4]
[345971816,1734576643052,-500.0,0.00022736,4]
[345971817,1734576643062,-500.0,0.00022736,4]
[345971818,1734576643071,-519.43414243,0.00022736,4]
[345971819,1734576643081,-513.45227464,0.00022736,4]
[345971820,1734576643091,-500.0,0.00022736,4]
[345971821,1734576643100,-669.36,0.00022736,4]
[345971822,1734576643110,-500.0,0.00022736,4]
[345971823,1734576643119,-501.61,0.00022736,4]
[345971824,1734576643129,-679.02,0.00022736,4]
[345971825,1734576643140,-500.0,0.00022736,4]
[345971826,1734576643149,-500.0,0.00022736,4]
[345971827,1734576643159,-500.0,0.00022736,4]
[345971828,1734576643169,-500.0,0.00022736,4]
[345971829,1734576643178,-500.0,0.00022736,4]
[345971830,1734576643187,-500.0,0.00022736,4]
[345971831,1734576643197,-519.6237691,0.00022736,4]
[345971832,1734576643207,-500.0,0.00022736,4]
[345971833,1734576643216,-500.0,0.00022736,4]
[345971834,1734576643226,-500.0,0.00022736,4]
[345971835,1734576643235,-500.0,0.00022736,4]
[345971836,1734576643245,-500.0,0.00022736,4]
[345971837,1734576643255,-500.0,0.00022736,4]
[345971839,1734576643264,-500.0,0.00022736,4]
[345971840,1734576643274,-500.0,0.00022736,4]
[345971842,1734576643284,-500.0,0.00022736,4]
[345971844,1734576643296,-304.86426377,0.00022736,4]
[345971847,1734576643312,-195.13573623,0.00022736,4]
[345971848,1734576643322,-258.28886403,0.00022736,4]
[345971853,1734576643499,-519.13,0.00022536,4]
[345971856,1734576643509,-241.71113597,0.00022736,4]
[345971859,1734576643518,-439.16045233,0.00022736,4]
[345971862,1734576643530,-147.57954767,0.00022736,4]
[345971864,1734576643542,-500.0,0.00022736,4]
[345971866,1734576643551,-500.0,0.00022736,4]
[345971868,1734576643560,-342.50713893,0.00022736,4]
[345971870,1734576643571,-157.49286107,0.00022736,4]
[345971872,1734576643581,-500.0,0.00022736,4]
[345971874,1734576643590,-63.23813893,0.00022736,4]
[345971876,1734576643601,-436.76186107,0.00022736,4]
[345971878,1734576643610,-500.0,0.00022736,4]
[345971880,1734576643620,-500.0,0.00022736,4]
[345971882,1734576643629,-500.0,0.00022736,4]
[345971884,1734576643639,-500.0,0.00022736,4]
[345971886,1734576643648,-500.0,0.00022736,4]
[345971888,1734576643658,-500.0,0.00022736,4]
[345971890,1734576643667,-500.0,0.00022736,4]
[345971892,1734576643676,-875.86,0.00022736,4]
[345971894,1734576643686,-922.69,0.00022736,4]
[345971895,1734576643695,-500.0,0.00022736,4]